Cogmind - Beta 13 @@@ ROGUE MODE // 2024.04.06 @ 18:58:53 Player: Lucas Result: Self-destructed Performance ------------- Evolutions (2) 1000 Regions Visited (3) 600 Robots Destroyed (12) 60 Value Destroyed (206) 206 Prototype IDs (0) 0 Alien Tech Used (0) 0 Bonus (0) 0 TOTAL SCORE: 1866 Bonus ------- None Cogmind --------- Core Integrity 510/550 Matter 259/300 Energy 265/265 System Corruption 0% Temperature Cool (0) Movement Flying (26) Location -8/Materials Parts ------- > --- POWER (1) -------- Improved Ion Engine > --- PROPULSION (4) --- VTOL Module VTOL Module VTOL Module VTOL Module > --- UTILITY (3) ------ Recoil Stabilizer Hacking Suite > --- WEAPON (3) ------- Light Assault Rifle > --- INVENTORY (5) ---- Sensor Array Targeting Computer EM Pulse Gun EM Pulse Gun Peak State ------------ > --- POWER ------------ Improved Ion Engine > --- PROPULSION ------- VTOL Module VTOL Module VTOL Module VTOL Module > --- UTILITY ---------- Small Matter Pod Recoil Stabilizer Hacking Suite > --- WEAPON ----------- Light Assault Rifle Light Assault Rifle High-powered Shotgun > --- INVENTORY -------- Sensor Array Targeting Computer EM Pulse Gun EM Pulse Gun [Rating: 22] Favorites ----------- Power Light Ion Engine Engine Light Ion Engine Propulsion VTOL Module Leg Aluminum Leg Flight Unit VTOL Module Utility Small Matter Pod Device Recoil Stabilizer Storage Small Matter Pod Hackware Hacking Suite Weapon Light Assault Rifle Energy Gun EM Pulse Gun Ballistic Gun Light Assault Rifle Build | -11 -10 -9 -8 ------- Run | Yrd Mat Mat Mat Slots Evolved 4 | . . 2 2 Power . | . . . . Propulsion 2 | . . 2 . Utility 1 | . . . 1 Weapon 1 | . . . 1 Parts Attached 19 | 5 6 6 2 Power 2 | 1 . 1 . Engine 2 | 1 . 1 . Core . | . . . . Reactor . | . . . . Propulsion 6 | 2 2 2 . Treads . | . . . . Leg 2 | 2 . . . Wheel . | . . . . Hover . | . . . . Flight 4 | . 2 2 . Utility 5 | . 1 3 1 Device 3 | . . 3 . Storage 1 | . 1 . . Processor . | . . . . Hackware 1 | . . . 1 Protection . | . . . . Artifact . | . . . . Weapon 6 | 2 3 . 1 Energy Gun 2 | 2 . . . Energy Cannon . | . . . . Ballistic Gun 4 | . 3 . 1 Ballistic Cannon . | . . . . Launcher . | . . . . Special Weapon . | . . . . Impact Weapon . | . . . . Slashing Weapon . | . . . . Piercing Weapon . | . . . . Special Melee Weapon . | . . . . Unidentified Prototypes . | . . . . Parts Lost 3 | . . . 3 Power . | . . . . Propulsion . | . . . . Utility 1 | . . . 1 Weapon 2 | . . . 2 Highest Loss Streak 3 | . . . 3 To Critical Strikes . | . . . . Average Slot Usage (%) 89 | . 78 99 90 Engine 11 | . 14 11 9 Leg 7 | . 19 . . Flight 27 | . 7 44 36 Device 5 | . . 10 9 Storage 9 | . 8 11 5 Hackware 1 | . . . 9 Energy Gun 10 | . 24 . . Ballistic Gun 14 | . 3 22 21 Naked Turns . | . . . . Heaviest Build 14 | 7 8 11 14 Greatest Support 20 | 20 20 16 16 Greatest Overweight (x) 2 | 2 2 . . Average Overweight (x) . | . . . . Largest Inventory Capacity 5 | 5 5 5 5 Average Capacity 5 | 5 5 5 5 Most Carried 5 | . 5 4 4 Average Carried 2 | . 1 2 3 Final Capacity 5 | 5 5 5 5 Final Carried 4 | . 4 4 4 Class Distribution -------------------- 49% | Sprinter 34% | Mutant 15% | Scavenger-Sprinter Dominant Class ---------------- Mutant | -10/Materials Sprinter | -9/Materials Scavenger-Sprinter | -8/Materials Resources | -11 -10 -9 -8 ----------- Run | Yrd Mat Mat Mat Matter Collected 428 | 215 . 194 19 Remotely . | . . . . Salvage Created 408 | . 149 194 65 Parts 27 | . 12 11 4 Haulers Intercepted . | . . . . Recyclers Shooed 2 | . 1 1 . Parts Field Recycled . | . . . . Retrieved Matter . | . . . . Parts Self-Destructed . | . . . . Prevented . | . . . . Kills | -11 -10 -9 -8 ------- Run | Yrd Mat Mat Mat Combat Hostiles Destroyed 6 | . 3 2 1 Guns 6 | . 3 2 1 Classes Destroyed 8 | . 3 4 1 Worker 1 | . 1 . . Builder 1 | . . . 1 Recycler 2 | . 1 1 . Operator 1 | . . 1 . Watcher 1 | . . 1 . Swarmer 3 | . 3 . . Grunt 2 | . . 1 1 Sentry 1 | . . 1 . Best Kill Streak 3 | . 3 3 2 Combat Bots Only 3 | . 3 1 1 Max Kills in Single Turn 2 | . 2 2 1 Gunslinging 1 | . 1 . . Exploded . | . . . . Melee . | . . . . Uniques/NPCs Destroyed . | . . . . Combat | -11 -10 -9 -8 -------- Run | Yrd Mat Mat Mat Hostile Shots Fired 56 | . 14 8 34 Missed 19 | . 2 4 13 Damage Taken 481 | . 89 53 339 Core 72 | . 32 . 40 Absorbed by Shields . | . . . . Core Remaining (%) 95 | 100 87 100 . Volleys Fired 47 | . 7 25 15 Largest 2 | . 2 2 1 Hottest 80 | . 80 40 25 Shots Fired 79 | . 14 50 15 Gun 79 | . 14 50 15 Cannon . | . . . . Launcher . | . . . . Special . | . . . . Kinetic 65 | . . 50 15 Thermal . | . . . . Explosive . | . . . . Electromagnetic 14 | . 14 . . Robot Hit Streak 17 | . 3 16 17 Robot Miss Streak 4 | . 2 2 4 Penetration Max . | . . . . Secondary Targets 1 | . 1 . . Max Gunslinging Chain 1 | . 1 . . Shots Hit Robots 55 | . 9 35 11 Core Hits 28 | 1 6 14 7 Critical Kills . | . . . . Critical Parts Destroyed . | . . . . Critical Strikes 1 | . 1 . . Corrupt 1 | . 1 . . Melee Attacks . | . . . . Impact . | . . . . Slashing . | . . . . Piercing . | . . . . Sneak Attacks . | . . . . Combat Hostiles . | . . . . Follow-up Attacks . | . . . . Damage Inflicted 671 | 3 142 282 244 Guns 645 | . 119 282 244 Cannons . | . . . . Explosions 22 | . 22 . . Melee . | . . . . Ramming 4 | 3 1 . . Kinetic 526 | . . 282 244 Thermal 22 | . 22 . . Explosive . | . . . . Electromagnetic 119 | . 119 . . Impact . | . . . . Slashing . | . . . . Piercing . | . . . . Highest Corruption 1 | . 1 . . Average Corruption 1 | . 1 . . Corruption Purged . | . . . . Corruption Blocked . | . . . . Overload Shots . | . . . . Overflow Damage . | . . . . Projectiles . | . . . . Explosions . | . . . . Melee . | . . . . Knockbacks . | . . . . Impact . | . . . . Kinetic . | . . . . Secondary . | . . . . Self-Inflicted Damage . | . . . . Shots . | . . . . Rammed . | . . . . Targets Rammed 3 | 1 2 . . Kicked 3 | 1 2 . . Crushed . | . . . . Highest Temperature 74 | . 74 16 36 Average Temperature 18 | . 38 5 21 Received Heat Transfer 213 | . . 24 189 Siege Activations . | . . . . Robots Corrupted . | . . . . Combat Hostiles . | . . . . Parts Fried . | . . . . Impact Corruptions . | . . . . Robots Melted . | . . . . Combat Hostiles . | . . . . Parts Melted . | . . . . Heat Transferred 50 | . 50 . . Parts Sabotaged . | . . . . Parts Stolen . | . . . . Parts Stripped . | . . . . Power Chain Reactions 1 | . 1 . . Alert | -11 -10 -9 -8 ------- Run | Yrd Mat Mat Mat Peak Influence 187 | . 85 187 108 Initial 78 | . . 35 78 Average 63 | . 36 100 93 Maximum Alert Level . | . . . . Low Security (%) 100 | 100 100 100 100 Level 1 . | . . . . Level 2 . | . . . . Level 3 . | . . . . Level 4 . | . . . . Level 5 . | . . . . High Security . | . . . . Max Security . | . . . . Squads Dispatched 2 | . . 1 1 Investigation . | . . . . Extermination . | . . . . Reinforcement 2 | . . 1 1 Assault . | . . . . Garrison . | . . . . Intercept . | . . . . Searches Triggered . | . . . . Construction Impeded . | . . . . Haulers Reinforced . | . . . . Active Scanning Responses . | . . . . Cargo Convoy Interrupts . | . . . . Stealth | -11 -10 -9 -8 --------- Run | Yrd Mat Mat Mat Distress Signals . | . . . . Communications Jammed . | . . . . Distress Signals . | . . . . Times Spotted 15 | . 3 7 5 Peak Tracking Total 3 | . 3 3 3 Tactical Retreats . | . . . . Traps | -11 -10 -9 -8 ------- Run | Yrd Mat Mat Mat Traps Triggered 1 | . 1 . . Indirectly . | . . . . Trap Hack Attempts . | . . . . Triggered . | . . . . Disarmed . | . . . . Reprogrammed . | . . . . Reused . | . . . . Traps Extracted . | . . . . Installed . | . . . . Triggered . | . . . . Machines | -11 -10 -9 -8 ---------- Run | Yrd Mat Mat Mat Machines Disabled . | . . . . Max in Single Turn . | . . . . Machines Repaired . | . . . . Machines Dismantled . | . . . . Machines Sabotaged . | . . . . Overloaded Fab Kills . | . . . . Hacking | -11 -10 -9 -8 --------- Run | Yrd Mat Mat Mat Machines Accessed 1 | . . 1 . Terminals 1 | . . 1 . Fabricators . | . . . . Repair Stations . | . . . . Recycling Units . | . . . . Scanalyzers . | . . . . Garrison Access . | . . . . Total Hacks 1 | . . 1 . Successful 1 | . . 1 . Failed . | . . . . Catastrophic . | . . . . Database Lockouts . | . . . . Manual . | . . . . Terminals 1 | . . 1 . Fabricators . | . . . . Repair Stations . | . . . . Recycling Units . | . . . . Scanalyzers . | . . . . Garrison Access . | . . . . Terminal Hacks 1 | . . 1 . Alert Level 1 | . . 1 . Fabricator Hacks . | . . . . Repair Station Hacks . | . . . . Recycling Unit Hacks . | . . . . Scanalyzer . | . . . . Garrison Access Hacks . | . . . . Unauthorized Hacks . | . . . . Terminals . | . . . . Fabricators . | . . . . Repair Stations . | . . . . Recycling Units . | . . . . Scanalyzers . | . . . . Garrison Access . | . . . . Data Cores Recovered . | . . . . Used . | . . . . Hacking Detections . | . . . . Full Trace Events . | . . . . Feedback Events . | . . . . Feedback Blocked . | . . . . Robot Schematics Acquired . | . . . . Robots Built . | . . . . Authchips . | . . . . Time . | . . . . Total Robot Build Rating . | . . . . Part Schematics Acquired . | . . . . Parts Built . | . . . . Authchips . | . . . . Time . | . . . . Total Part Build Rating . | . . . . Parts Repaired . | . . . . Time . | . . . . Parts Recycled . | . . . . Recycled Matter . | . . . . Retrieved Matter . | . . . . Retrieved Components . | . . . . Parts Scanalyzed . | . . . . Part Schematics Acquired . | . . . . Parts Damaged . | . . . . Bothacking | -11 -10 -9 -8 ------------ Run | Yrd Mat Mat Mat Used RIF Installer . | . . . . Robots Hacked . | . . . . Non-combat . | . . . . Combat . | . . . . Robot Hacks Applied . | . . . . Relay Couplers Released . | . . . . Fabnet Peak Effective % . | . . . . Robots Rewired . | . . . . Allies Hacked . | . . . . Hacks Repelled . | . . . . Allies | -11 -10 -9 -8 -------- Run | Yrd Mat Mat Mat Total Allies . | . . . . Largest Group . | . . . . Highest-Rated Group . | . . . . Highest-Rated Ally . | . . . . Total Orders . | . . . . Ally Attacks . | . . . . Total Damage . | . . . . Kills . | . . . . Allies Corrupted . | . . . . Allies Melted . | . . . . Intel | -11 -10 -9 -8 ------- Run | Yrd Mat Mat Mat Robot Analysis Total . | . . . . Derelict Logs Recovered . | . . . . Drone Launches . | . . . . Drone Recoveries . | . . . . Exploration | -11 -10 -9 -8 ------------- Run | Yrd Mat Mat Mat Turns Passed 440 | 58 156 159 67 Spaces Moved 656 | 49 155 322 130 Core 27 | 25 2 . . Treads . | . . . . Legs 98 | 24 74 . . Wheels . | . . . . Hover . | . . . . Flight 531 | . 79 322 130 Fastest Speed 26 | 50 32 26 26 Average Speed 43 | 101 76 26 26 Slowest Speed 150 | 150 150 26 26 Overloaded Moves . | . . . . Propulsion Burnouts . | . . . . Robots Hopped 3 | . 2 1 . Cave-ins Triggered . | . . . . Exploration Rate (%) 17 | 3 35 23 10 Regions Visited 3 Branch Regions . Pre-discovered Areas . | . . . . Known Exits Taken . | . . . . Unknown Exits Taken 3 | 1 1 1 . Scrap Searched . | . . . . Spaces Dug . | . . . . Terrain Destroyed 5 | . 5 . . Melee . | . . . . Projectile . | . . . . AOE 5 | . 5 . . Terrain Rammed . | . . . . Walls Destroyed . | . . . . Machines Disabled . | . . . . Actions | -11 -10 -9 -8 --------- Run | Yrd Mat Mat Mat Total 735 | 54 177 356 148 Wait . | . . . . Move 647 | 48 150 319 130 Hop 3 | . 2 1 . Pick Up 6 | . 3 2 1 Fast Attach 11 | 5 4 1 1 Attach 7 | . 2 4 1 Detach 7 | . 5 2 . Swap 1 | . . 1 . Drop 3 | . 2 1 . Fire 47 | . 7 25 15 Melee . | . . . . Ram . | . . . . Kick 3 | 1 2 . . Crush . | . . . . Escape Stasis . | . . . . Rewire . | . . . . Trap . | . . . . Miscellaneous . | . . . . Route ------- -11/Scrapyard -10/Materials -9/Materials (discovered 2 exits: [*Mat] / [*Sto]) -8/Materials History --------- Turn | Location | Event 3 | -11/Scrapyard | Discovered new exit (range 16) 59 | -11/Scrapyard | Entered Materials 205 | -10/Materials | Discovered new exit (range 15) 215 | -10/Materials | Entered another Materials area 215 | -9/Materials | Evolved 2 slots: Propulsion x2 273 | -9/Materials | Discovered new exit (range 12) 366 | -9/Materials | Discovered new exit (range 16) 374 | -9/Materials | Entered another Materials area 374 | -8/Materials | Evolved 2 slots: Utility x1, Weapon x1 441 | -8/Materials | Self-destructed Last Messages --------------- 00364_ Acquired Hacking Suite. 00366_ EXIT=FOUND PARAMETERS=UTILITY+1,WEAPON+1 LOCATION=UNKNOWN GOAL=ESCAPE 00381_ T-07 Excavator is excavating. 00383_ Acquired Targeting Computer. 00386_ O-24 Administrator: "IFF HANDSHAKE FAILED. SECURING TERMINAL." 00392_ Acquired Hpw. Shotgun. 00410_ Critical hit (Burn: +37). 00412_ Sml. Matter Pod destroyed. 00415_ G-47 Trooper destroyed. 00420_ ALERT: Hostiles spotted, dispatching reinforcements to Terminal M008. 00421_ U-05 Engineer destroyed. 00422_ Acquired 19 matter. 00435_ Hpw. Shotgun destroyed. 00435_ Lgt. Assault Rifle destroyed. 00439_ Atomic Centrifuge disabled. Map ----- +----------------------------------------------------+ | ??????????????????????????# # #??? ????? | | ??????????????????????????# # ! #??? ????? | | ??????????????????????????####+######+####?? ????? | | ??????????????????????????# #?? ????? | | ??????????????????????????# #?# #???? | | ??????????????????????????# #?# #???? | | ??????????????????????????# ############?# #???? | | ??????????????????????????# # #???# #???? | | ????????????????????????### # """ #???# #???? | | ????????????????????????# + """ #???# #???? | | ????????????????????????# # # """ #???# #???? | | ????????????????????????### # #???# #???? | | ??????????????????????????# # """ ##### #???? | | ??????????????????????????# # """ + #???? | | ??????????????????????????# # """ ##### #???? | | ??????????????????????????# # #???# #???? | | ?????????????????????###### ############## #???? | | ????????????????????? #??# = # #???? | | ??????????????????????*%=? #??# "T" # #???? | | ?????????????????????? Y ? #??# = """ + #???? | | ??????????????????????#/########?# # #???? | | ??????????????????????#g= #?#####+##### #???? | | ??????????????????????#" """ =#?????# #???? | | ??????????????????????#"m "" #?????# #???? | | ??????????????????????#" """ #?????# """ #???? | | ??????????????????????#T @ #?????# """ #???? | | ??????????????????????#" """ !#?????# """ #???? | | ??????????????????????#" """ #?????# #???? | | ??????????????????????#" """ =#?????#= #???? | | ??????????????????????# #?????# ## ####???? | | ??????????????????#####+##+########### #?##??????? | | ??????????? #?????????? | | ??????????????????##### ################?????????? | | ??????????????????????#+#????????????????????????? | | ?????????????????????????????????????????????????? | | ?????????????????????????????????????????????????? | | ?????????????????????????????????????????????????? | | ?????????????????????????????????????????????????? | | ?????????????????????????????????????????????????? | | ?????????????????????????????????????????????????? | | ?????????????????????????????????????????????????? | | ?????????????????????????????????????????????????? | | ?????????????????????????????????????????????????? | | ?????????????????????????????????????????????????? | | ?????????????????????????????????????????????????? | | ?????????????????????????????????????????????????? | | ?????????????????????????????????????????????????? | | ?????????????????????????????????????????????????? | | ?????????????????????????????????????????????????? | | ?????????????????????????????????????????????????? | +----------------------------------------------------+ Best States ------------- Heat Dissipation 31 Energy Generation 12 Energy Capacity 265 Matter Stores 296 Matter Capacity 350 Sight Range 16 Robot Scan Range 14 Terrain Scan Density 10 Evasion (%) 64 Recoil Reduction 4 Offensive Hacking 10 Item Schematics ----------------- None Robot Schematics ------------------ None Fabricated ------------ Nothing Alien Tech Used ----------------- None Achievements -------------- None Challenges ------------ None Game ------ Seed HellfireSkeletonRail Manual? 0 Play Time 00:09:17 Cumulative 5.5 hours Start 2024.04.06 @ 18:50:03 End 2024.04.06 @ 18:58:53 Sessions 1 Manual Loads 0 Difficulty Rogue Special Mode None Game No. 15 Rogue 12 Adventurer 3 Explorer 0 Win Type - Total 0 Types 0/0/0/0/0/0/0/0/0 Lore% 7 Gallery% 11 Achievement% 12 Wizard Run 0 Options --------- Layout 1 ASCII 0 Keyboard 1 Movement Numpad Keybinds 0 Fullscreen 1 Font 24/Smallcaps Map View 50x35 Zoom Use 0% Tactical HUD 1 Map Filters NONE Filters NONE Steam 1 RUN: 6a941693-fa5c-475d-bf5a-41aca4d15032